bitfinex-derivatives/quotes_ETHF0:USTF0_20210407
["timestamp","ask_amount","ask_price","bid_price","bid_amount"]
[1617820985360,70.8583,1981.4,1979.4,6.08]
[1617820985562,70.8583,1981.4,1980.0,2.90695]
[1617820985960,30.0,1981.3,1980.0,2.90695]
[1617820987564,2.90695,1980.1,1980.0,2.90695]
[1617820995574,2.90695,1980.1,1980.0,9.05695]
[1617820997579,72.8083,1980.8,1980.0,9.05695]
[1617820997784,72.8083,1980.8,1980.0,11.63315]
[1617820999081,32.0,1981.7,1980.0,11.63315]
[1617820999289,32.0,1981.7,1980.7,59.3087]
[1617820999580,2.90695,1980.8,1980.7,59.3087]
[1617820999985,2.0,1982.2,1980.7,59.3087]
[1617821000185,2.571,1982.3,1980.7,59.3087]
[1617821000385,2.571,1982.3,1980.8,6.18]
[1617821001284,32.571,1982.3,1980.8,6.18]
[1617821001784,2.571,1982.3,1981.2,5.20455]
[1617821002185,32.571,1982.3,1981.2,5.20455]
[1617821002387,2.571,1982.3,1981.2,5.20455]
[1617821003194,32.571,1982.3,1981.2,5.20455]
[1617821003387,2.571,1982.3,1981.2,5.20455]
[1617821003589,2.90695,1981.3,1981.2,5.20455]
[1617821004094,2.90695,1981.3,1981.2,11.40455]
[1617821008095,2.90695,1981.3,1981.2,9.10695]
[1617821008295,2.90695,1981.3,1981.2,2.90695]
[1617821008610,5.58465,1981.3,1981.2,2.90695]
[1617821008797,5.58465,1981.3,1980.2,74.0577]
[1617821009596,2.6777,1981.3,1980.4,2.90695]
[1617821010697,2.6777,1981.3,1980.2,74.0577]
[1617821011098,32.6777,1981.3,1980.2,74.0577]
[1617821011299,34.6777,1981.3,1978.8,30.0]
[1617821011599,60.7634,1980.7,1979.4,2.90695]
[1617821012900,2.668,1980.7,1979.9,57.2937]
[1617821013250,2.571,1981.0,1979.9,57.2937]
[1617821013440,2.571,1981.0,1980.0,6.33]
[1617821013652,2.571,1981.0,1980.4,78.3107]
[1617821013850,2.571,1981.0,1980.4,81.0358]
[1617821014068,2.571,1981.0,1980.5,6.05]
[1617821014202,16.2537,1982.1,1980.5,6.05]
[1617821014701,2.571,1982.1,1980.5,6.05]
[1617821015502,2.571,1982.1,1980.5,36.05]
[1617821015808,2.571,1982.1,1981.3,2.90695]
[1617821016002,2.571,1982.1,1981.4,72.9189]
[1617821017104,2.571,1982.1,1981.5,6.15]
[1617821017304,71.6656,1982.9,1981.5,6.15]
[1617821017706,2.90695,1981.6,1981.5,9.05695]
[1617821019111,71.6656,1982.9,1981.5,9.05695]
[1617821019512,2.571,1983.2,1981.5,9.05695]
[1617821019711,2.571,1983.2,1982.0,79.5851]
[1617821020418,2.571,1983.2,1982.1,8.8304]
[1617821020811,2.0,1983.1,1982.1,2.7204]
[1617821021012,32.9666,1983.0,1982.1,2.7204]
[1617821021211,2.0,1982.9,1982.1,2.7204]
[1617821021544,2.0,1982.9,1981.3,78.6364]
[1617821021545,30.0,1982.8,1981.3,78.6364]
[1617821021711,2.90695,1981.4,1981.3,78.6364]
[1617821021911,2.90695,1981.4,1980.9,2.90695]
[1617821021912,4.81365,1981.4,1980.9,2.90695]
[1617821023414,2.90695,1981.4,1981.1,57.9179]
[1617821023747,2.90695,1981.4,1981.3,2.90695]
[1617821024115,2.571,1982.4,1981.3,9.07695]
[1617821024313,66.2359,1982.6,1981.3,9.07695]
[1617821025715,66.2359,1982.6,1981.7,2.90695]
[1617821025915,66.2359,1982.6,1981.7,5.22855]
[1617821026315,2.571,1983.2,1981.8,6.17]
[1617821026516,2.571,1983.2,1981.8,74.5043]
[1617821026917,32.571,1983.2,1981.8,74.5043]
[1617821027116,32.571,1983.2,1981.8,68.3343]
[1617821027816,2.90695,1981.9,1981.7,2.90695]
[1617821028016,2.90695,1981.9,1981.8,62.1854]
[1617821028216,2.90695,1981.9,1981.8,65.0792]
[1617821028416,2.90695,1981.9,1981.8,71.2292]
[1617821029517,2.90695,1981.9,1981.8,65.0792]
[1617821029817,2.90695,1981.9,1981.8,2.8938]
[1617821030217,2.90695,1981.9,1981.8,8.9538]
[1617821030418,2.90695,1981.9,1981.7,82.46945]
[1617821030617,4.84535,1981.9,1981.7,79.5625]
[1617821030918,4.84535,1981.9,1980.5,30.0]
[1617821031120,4.84535,1981.9,1980.7,79.5946]
[1617821031720,1.9384,1981.9,1981.5,2.90695]
[1617821032123,1.9384,1981.9,1979.8,30.0]
[1617821032425,59.6431,1981.5,1979.9,2.0]
[1617821032621,30.0,1981.4,1978.2,1.0059]
[1617821032869,77.1916,1980.7,1978.6,69.002]
[1617821033059,79.6809,1980.7,1978.6,69.002]
[1617821033256,79.6809,1980.7,1978.7,36.2]
[1617821033520,79.6809,1980.7,1978.7,38.2]
[1617821033720,109.6809,1980.7,1979.5,2.90695]
[1617821034524,81.6809,1980.7,1979.5,2.90695]
[1617821034850,2.4893,1980.7,1979.5,79.90835]
[1617821035069,64.4979,1981.4,1979.6,6.17]
[1617821035630,64.4979,1981.4,1979.7,2.0]
[1617821035824,64.4979,1981.4,1980.4,2.90695]
[1617821036026,64.4979,1981.4,1980.4,5.27655]
[1617821036429,94.4979,1981.4,1980.4,5.27655]
[1617821036926,2.0,1981.3,1979.5,77.0014]
[1617821037129,30.0,1981.2,1979.5,77.0014]
[1617821037326,2.0,1981.1,1979.5,77.0014]
[1617821037526,32.0297,1981.0,1979.5,77.0014]
[1617821037828,34.0297,1981.0,1979.7,2.90695]
[1617821038827,74.6675,1980.4,1979.7,2.90695]
[1617821039027,76.8834,1980.4,1979.7,2.90695]
[1617821039830,2.90695,1979.8,1979.7,2.90695]
[1617821040027,5.95435,1979.8,1979.7,2.90695]
[1617821040327,5.95435,1979.8,1978.3,30.0]
[1617821040528,71.7521,1979.3,1978.3,30.0]
[1617821040928,71.7521,1979.3,1978.4,6.1]
[1617821041350,71.7521,1979.3,1978.5,2.0]
[1617821041561,5.95435,1979.8,1978.5,32.0]
[1617821041751,2.90695,1979.8,1978.5,34.8026]
[1617821042056,62.0624,1980.3,1979.7,2.90695]
[1617821042830,62.0624,1980.3,1979.1,2.3769]
[1617821043032,64.6939,1980.3,1978.4,83.0249]
[1617821043330,94.6939,1980.3,1978.4,83.0249]
[1617821043631,94.6939,1980.3,1978.5,6.26]
[1617821043832,96.6939,1980.3,1979.1,2.90695]
[1617821045931,2.90695,1979.2,1979.1,2.90695]
[1617821046255,5.83875,1979.2,1979.1,2.90695]
[1617821047237,2.90695,1979.2,1979.1,2.90695]
[1617821048637,2.90695,1979.2,1979.1,9.18695]
[1617821048836,2.90695,1979.2,1979.1,2.90695]
[1617821050840,0.02904252,1980.8,1979.1,2.90695]
[1617821051041,2.60005121,1980.9,1979.5,83.3094]
[1617821051241,2.60005121,1980.9,1979.5,85.9888]
[1617821051442,2.60005121,1980.9,1979.6,6.11]
[1617821051641,2.571,1980.9,1979.6,6.11]
[1617821051943,2.571,1980.9,1980.0,5.80585]
[1617821053140,2.571,1980.9,1980.0,2.90695]
[1617821053341,32.571,1980.9,1979.5,83.3094]
[1617821053543,37.1673,1980.9,1979.5,83.3094]
[1617821053842,37.1673,1980.9,1979.7,2.90695]
[1617821054541,0.02917673,1980.5,1978.0,2.4119]
[1617821054741,62.0439,1980.2,1978.4,56.6809]
[1617821055042,33.0843,1980.1,1978.4,56.6809]
[1617821055444,33.0843,1980.1,1978.5,6.3]
[1617821055845,33.0843,1980.1,1979.1,2.90695]
[1617821056247,35.0843,1980.1,1978.4,56.6809]
[1617821056852,35.17190784,1980.1,1978.4,56.6809]
[1617821057146,0.02921108,1980.0,1978.5,6.07]
[1617821057649,35.14270523,1980.1,1978.5,6.07]
[1617821057650,35.11352247,1980.1,1978.5,6.07]
[1617821057947,35.11352247,1980.1,1978.8,2.90695]
[1617821058968,33.11352247,1980.1,1978.8,2.90695]
[1617821059150,33.11352247,1980.1,1978.9,6.06]
[1617821059867,33.11352247,1980.1,1979.3,2.90695]
[1617821060471,3.11352247,1980.1,1979.3,2.90695]
[1617821061876,2.90695,1979.4,1979.3,2.90695]
[1617821062050,5.72915,1979.4,1979.3,2.90695]
[1617821064052,5.72915,1979.4,1978.4,56.6809]
[1617821064652,5.72915,1979.4,1978.5,6.32]
[1617821066159,2.8222,1979.4,1977.4,32.0]
[1617821066355,75.7282,1979.2,1977.9,77.3299]
[1617821066556,105.7282,1979.2,1977.9,77.3299]
[1617821067355,107.7282,1979.2,1977.9,77.3299]
[1617821067556,108.7374,1979.2,1977.9,77.3299]
[1617821067956,0.02919196,1979.0,1977.9,77.3299]
[1617821068157,2.58739196,1979.0,1977.9,77.3299]
[1617821068359,2.5582,1979.0,1977.9,77.3299]
[1617821070560,30.0,1978.9,1977.9,77.3299]
[1617821070861,2.5582,1979.0,1977.9,77.3299]
[1617821071161,34.5582,1979.0,1976.9,2.0]
[1617821071362,84.1894,1978.4,1976.9,2.0]
[1617821071561,84.1894,1978.4,1976.8,82.3667]
[1617821071762,114.1894,1978.4,1977.0,6.34]
[1617821071962,114.1894,1978.4,1977.5,2.90695]
[1617821072272,116.1894,1978.4,1976.8,82.3667]
[1617821072475,34.6496,1978.4,1975.4,6.55079511]
[1617821072725,64.8602,1977.5,1975.8,77.824]
[1617821072876,67.7307,1977.5,1975.8,77.824]
[1617821073234,97.7307,1977.5,1975.9,6.18]
[1617821073920,67.7307,1977.5,1975.9,6.18]
[1617821074074,68.7519,1977.5,1976.7,2.90695]
[1617821075065,68.7519,1977.5,1975.8,77.824]
[1617821075266,3.8917,1977.5,1975.3,32.0]
[1617821075610,3.8917,1977.5,1975.9,6.36]
[1617821075781,75.0658,1976.8,1975.9,6.36]
[1617821075979,75.0658,1976.8,1976.5,2.90695]
[1617821077571,2.3709,1976.8,1976.5,2.90695]
[1617821077771,57.4455,1977.5,1976.5,2.90695]
[1617821077971,2.90695,1976.6,1976.5,2.90695]
[1617821078885,2.90695,1976.6,1975.6,2.0]
[1617821079086,58.3179,1976.3,1975.6,2.0]
[1617821079580,58.3179,1976.3,1975.7,6.1]
[1617821079974,58.3179,1976.3,1976.0,2.90695]
[1617821080175,2.0,1978.1,1976.0,2.90695]
[1617821080388,2.895286,1980.6,1976.4,2.5109]
[1617821080674,73.8707,1978.5,1976.9,59.4984]
[1617821080945,1.0166,1979.2,1976.9,2.4622]
[1617821081079,79.3564,1978.1,1977.0,6.27]
[1617821081579,109.3564,1978.1,1976.9,2.4622]
[1617821081977,2.90695,1977.0,1976.9,2.4622]
[1617821084501,2.90695,1977.0,1976.8,2.90695]
[1617821085784,80.0697,1977.1,1976.8,2.90695]
[1617821085982,80.0697,1977.1,1977.0,2.90695]
[1617821087985,82.97665,1977.1,1977.0,2.90695]
[1617821090386,2.90695,1977.1,1977.0,2.90695]
[1617821091799,13.9961,1979.7,1977.0,2.90695]
[1617821092003,13.9961,1979.7,1977.8,2.90695]
[1617821092004,64.9556,1978.9,1977.8,2.90695]
[1617821092196,64.9556,1978.9,1977.8,4.94405]
[1617821093898,94.9556,1978.9,1977.8,4.94405]
[1617821094121,2.90695,1977.9,1977.8,4.94405]
[1617821095920,64.9556,1978.9,1977.8,4.94405]
[1617821096104,2.0,1979.4,1978.1,2.90695]
[1617821096324,67.6448,1979.7,1978.2,78.8527]
[1617821096518,2.0,1979.7,1978.2,2.968]
[1617821096718,71.0725,1979.1,1978.2,2.968]
[1617821097504,71.0725,1979.1,1978.3,6.13]
[1617821097904,71.0725,1979.1,1978.2,2.968]
[1617821098105,2.90695,1978.3,1977.7,2.90695]
[1617821098906,2.90695,1978.3,1977.8,6.36]
[1617821099110,2.90695,1978.3,1977.8,9.3]
[1617821100110,101.0725,1979.1,1978.2,2.90695]
[1617821102018,71.0725,1979.1,1978.2,2.90695]
[1617821102232,2.90695,1978.3,1978.2,2.90695]
[1617821104419,2.90695,1978.3,1977.5,69.016]
[1617821104764,2.90695,1978.3,1976.6,2.0]
[1617821104951,74.6839,1978.0,1976.6,2.0]
[1617821105156,76.9843,1978.0,1976.7,6.19]
[1617821105750,76.9843,1978.0,1976.5,56.7934]
[1617821105942,78.0032,1978.0,1976.5,56.7934]
[1617821106120,2.90695,1976.6,1976.5,2.90695]
[1617821106530,2.90695,1976.6,1976.5,9.25695]
[1617821106719,2.90695,1976.6,1976.5,74.42295]
[1617821106919,75.2649,1977.5,1976.5,76.42295]
[1617821107320,75.2649,1977.5,1976.5,106.42295]
[1617821107522,75.2649,1977.5,1976.5,104.42295]
[1617821107720,30.0,1979.0,1976.5,39.25695]
[1617821107922,59.7845,1978.6,1977.1,81.7708]
[1617821108123,59.7845,1978.6,1977.8,2.90695]
[1617821109523,89.7845,1978.6,1977.1,81.7708]
[1617821109724,33.3501,1978.6,1976.3,32.0]
[1617821110031,84.9651,1977.8,1975.9,76.0675]
[1617821110324,84.9651,1977.8,1976.9,2.90695]
[1617821110623,83.9552,1977.8,1976.9,2.90695]
[1617821111828,113.9552,1977.8,1976.9,2.90695]
[1617821112056,113.9552,1977.8,1975.9,76.0675]
[1617821112248,113.9552,1977.8,1976.5,2.90695]
[1617821112249,2.90695,1976.6,1976.5,2.90695]
[1617821112429,4.79475,1976.6,1976.5,2.90695]
[1617821112729,5.80345,1976.6,1976.5,2.90695]
[1617821112927,4.79475,1976.6,1976.5,2.90695]
[1617821114641,83.6312,1976.5,1975.0,58.0098]
[1617821114885,83.6312,1976.5,1975.0,60.0098]
[1617821115050,30.0,1976.4,1975.0,60.0098]
[1617821115291,83.6312,1976.5,1975.0,58.0098]
[1617821116356,32.0,1976.4,1974.0,2.0]
[1617821116734,74.6704,1975.4,1974.0,2.0]
[1617821116935,77.1906,1975.4,1974.0,2.0]
[1617821117136,77.1906,1975.4,1974.1,6.24]
[1617821118036,77.1906,1975.4,1973.9,6.12]
[1617821118335,77.1906,1975.4,1974.6,2.90695]
[1617821118834,2.5202,1975.4,1974.6,2.90695]
[1617821120134,2.90695,1974.7,1974.6,2.90695]
[1617821120337,5.54085,1974.7,1974.6,2.90695]
[1617821123037,5.54085,1974.7,1973.8,73.9805]
[1617821123739,5.54085,1974.7,1973.9,6.3]
[1617821124142,2.6339,1974.7,1974.3,2.90695]
[1617821124739,62.1991,1974.9,1974.3,2.90695]
[1617821125040,62.1991,1974.9,1974.4,6.09]
[1617821126139,62.1991,1974.9,1974.8,2.90695]
[1617821126339,62.1991,1974.9,1974.8,5.05405]
[1617821128247,65.10605,1974.9,1974.8,5.05405]
[1617821128479,65.10605,1974.9,1974.8,2.90695]
[1617821128649,65.10605,1974.9,1973.8,73.9805]
[1617821128860,67.17375,1974.9,1973.8,73.9805]
[1617821129449,67.17375,1974.9,1973.9,6.35]
[1617821130248,64.2668,1974.9,1974.1,2.90695]
[1617821132349,2.90695,1974.2,1974.1,2.90695]
[1617821133851,64.2668,1974.9,1973.8,73.9805]
[1617821134350,64.2668,1974.9,1974.1,2.90695]
[1617821134551,62.1991,1974.9,1974.1,2.90695]
[1617821135153,62.1991,1974.9,1974.2,6.08]
[1617821136455,62.1991,1974.9,1974.5,2.90695]
[1617821137757,2.2876,1974.9,1973.0,30.0]
[1617821137957,60.2112,1974.0,1972.1,70.5388]
[1617821138281,60.2356,1973.0,1972.2,32.0]
[1617821138457,62.2223,1973.0,1972.9,2.90695]
[1617821138910,62.2223,1973.0,1972.9,9.09695]
[1617821139227,1.9867,1973.0,1972.9,9.09695]
[1617821140659,2.90695,1973.2,1972.9,9.09695]
[1617821142400,2.90695,1973.2,1973.1,2.90695]
[1617821143182,2.90695,1973.2,1971.9,75.6551]
[1617821143377,5.17085,1973.2,1971.9,75.6551]
[1617821143964,5.17085,1973.2,1972.0,6.37]
[1617821144466,2.2639,1973.2,1972.9,2.90695]
[1617821145174,2.2639,1973.2,1971.7,1.0]
[1617821145365,66.1682,1972.9,1971.7,1.0]
[1617821145605,2.2639,1973.2,1971.7,1.0]
[1617821145912,75.5082,1974.0,1971.9,74.3265]
[1617821146102,75.5082,1974.0,1972.0,6.38]
[1617821146475,75.5082,1974.0,1973.0,2.90695]
[1617821146667,13.5551,1975.0,1973.1,6.19]
[1617821146872,77.2835,1975.1,1973.3,84.0873]
[1617821147123,77.2835,1975.1,1973.4,6.38]
[1617821148370,77.2835,1975.1,1974.1,2.90695]
[1617821148570,2.0,1976.2,1974.1,2.90695]
[1617821148769,78.3251,1975.6,1974.1,88.75675]
[1617821150180,31.0006,1976.4,1974.2,6.14]
[1617821150370,2.0,1976.5,1974.9,69.97]
[1617821150727,81.2907,1976.9,1975.2,2.90695]
[1617821152434,111.2907,1976.9,1974.9,71.9225]
[1617821152606,2.90695,1975.3,1974.9,69.97]
[1617821152817,2.90695,1975.3,1974.8,2.90695]
[1617821153029,68.81145,1975.3,1974.8,2.90695]
[1617821153214,68.81145,1975.3,1973.8,63.0749]
[1617821153978,68.81145,1975.3,1973.9,6.25]
[1617821154577,65.9045,1975.3,1974.4,2.90695]
[1617821155278,65.9045,1975.3,1974.5,6.21]
[1617821155678,0.91120912,1979.3,1974.5,8.6998]
[1617821155879,2.0,1977.1,1974.5,8.6998]
[1617821156182,80.3744,1976.8,1974.9,56.9315]
[1617821156379,80.3744,1976.8,1974.9,58.8269]
[1617821156578,80.3744,1976.8,1975.3,2.90695]
[1617821156781,80.3744,1976.8,1975.3,5.71425]
[1617821157079,13.2319,1978.1,1975.4,6.08]
[1617821157080,30.0,1977.7,1975.4,6.08]
[1617821157279,61.7214,1977.6,1975.7,65.4996]
[1617821157502,89.7214,1977.6,1975.7,65.4996]
[1617821157678,59.7214,1977.6,1975.8,6.1]
[1617821158493,2.90695,1976.0,1975.8,6.1]
[1617821158692,2.90695,1976.0,1975.7,5.85105]
[1617821158929,2.90695,1976.0,1975.7,2.90695]
[1617821159710,2.90695,1976.0,1974.9,76.6685]
[1617821160485,76.8493,1976.2,1975.1,2.90695]
[1617821162287,74.3489,1976.2,1975.1,2.90695]
[1617821162532,2.90695,1975.2,1975.1,2.90695]
[1617821164588,74.3489,1976.2,1975.1,2.90695]
[1617821164789,74.3489,1976.2,1975.1,12.13935]
[1617821166397,74.3489,1976.2,1975.1,5.95935]
[1617821166597,2.90695,1975.2,1975.1,5.95935]
[1617821167393,2.90695,1975.2,1975.1,2.90695]
[1617821168600,4.83275,1975.2,1974.8,2.90695]
[1617821169003,4.83275,1975.2,1974.1,65.2715]
[1617821169706,4.83275,1975.2,1974.2,6.08]
[1617821170598,1.9258,1975.2,1974.4,2.90695]
[1617821170999,1.9258,1975.2,1974.1,65.2715]
[1617821171600,63.9991,1975.4,1974.2,6.37]
[1617821172505,63.9991,1975.4,1974.2,36.37]
[1617821172700,2.0,1976.5,1975.2,5.70845]
[1617821172901,72.0373,1976.1,1975.2,5.70845]
[1617821173703,72.0373,1976.1,1975.3,6.35]
[1617821174104,72.0373,1976.1,1975.2,5.70845]
[1617821174302,72.0373,1976.1,1974.9,62.8749]
[1617821174502,65.7375,1975.5,1973.8,2.0]
[1617821174703,67.8712,1975.5,1974.6,2.90695]
[1617821175403,67.8712,1975.5,1973.8,32.0]
[1617821175601,67.8712,1975.5,1974.7,6.07]
[1617821175903,67.8712,1975.5,1973.9,6.3]
[1617821178204,67.8712,1975.5,1973.8,6.2]
[1617821178504,67.8712,1975.5,1974.0,6.32]
[1617821178806,67.8712,1975.5,1974.1,2.90695]
[1617821179005,67.8712,1975.5,1974.2,6.34]
[1617821179605,97.8712,1975.5,1974.2,6.34]
[1617821180706,5.90805,1974.3,1974.1,2.90695]
[1617821181005,76.9088,1974.2,1974.1,2.90695]
[1617821182607,76.9088,1974.2,1973.7,2.90695]
[1617821182806,76.9088,1974.2,1973.0,82.471]
[1617821183505,76.9088,1974.2,1973.1,6.28]
[1617821183710,76.9088,1974.2,1973.1,36.28]
[1617821184710,76.9088,1974.2,1974.1,2.90695]
[1617821186613,76.9088,1974.2,1973.9,2.90695]
[1617821187214,76.9088,1974.2,1974.0,6.09]
[1617821187516,76.9088,1974.2,1973.9,2.90695]
[1617821188715,2.90695,1974.0,1973.9,2.90695]
[1617821188916,13.3397,1976.2,1973.9,2.90695]
[1617821189118,76.5778,1975.1,1973.9,11.60625]
[1617821189815,76.5778,1975.1,1973.9,41.60625]
[1617821190817,76.5778,1975.1,1974.6,5.23145]
[1617821191018,76.5778,1975.1,1974.7,6.18]
[1617821192717,76.5778,1975.1,1974.8,2.90695]
[1617821193120,2.0,1976.4,1974.8,2.90695]
[1617821193444,68.5438,1976.2,1974.9,6.26]
[1617821193621,2.0,1976.4,1974.9,6.26]
[1617821193823,68.5785,1975.6,1974.9,6.26]
[1617821194725,68.5785,1975.6,1975.5,2.90695]
[1617821194925,68.5785,1975.6,1975.5,5.97355]
[1617821195324,68.5785,1975.6,1975.5,3.0666]
[1617821196028,68.5785,1975.6,1974.1,66.3985]
[1617821196226,70.7947,1975.6,1974.1,66.3985]
[1617821196834,70.7947,1975.6,1974.8,2.90695]
[1617821198834,2.90695,1974.9,1974.8,2.90695]
[1617821200237,30.0,1976.4,1974.8,11.68335]
[1617821200436,62.8026,1976.3,1974.9,65.7247]
[1617821200835,62.8026,1976.3,1975.6,2.90695]
[1617821201135,62.8026,1976.3,1975.6,5.43955]
[1617821202741,2.90695,1975.7,1975.6,2.5326]
[1617821204442,82.26505,1975.7,1975.6,2.5326]
[1617821205244,82.26505,1975.7,1975.1,2.90695]
[1617821205847,2.90695,1975.7,1975.1,2.90695]
[1617821206146,70.1147,1975.1,1973.8,2.0]
[1617821206347,72.5553,1975.1,1973.8,2.0]
[1617821206846,72.5553,1975.1,1974.5,2.90695]
[1617821207949,70.1147,1975.1,1974.5,2.90695]
[1617821208147,70.1147,1975.1,1974.6,6.13]
[1617821208751,2.90695,1974.9,1974.6,6.13]
[1617821209149,70.1147,1975.1,1974.1,6.24]
[1617821209550,70.1147,1975.1,1974.7,6.31]
[1617821209952,70.1147,1975.1,1974.1,6.2]
[1617821210151,70.1147,1975.1,1974.8,6.33]
[1617821210551,70.1147,1975.1,1974.1,6.08]
[1617821210752,70.1147,1975.1,1974.8,2.90695]
[1617821211451,32.0,1976.4,1974.8,2.90695]
[1617821211653,80.5607,1975.8,1974.4,81.4451]
[1617821212254,80.5607,1975.8,1974.5,6.31]
[1617821212754,2.90695,1974.6,1974.5,9.21695]
[1617821214756,2.90695,1974.9,1974.5,9.21695]
[1617821215079,64.8871,1976.2,1974.9,82.611]
[1617821215358,64.8871,1976.2,1975.0,6.16]
[1617821216962,64.8871,1976.2,1975.4,2.90695]
[1617821217161,64.8871,1976.2,1975.4,5.42025]
[1617821217460,64.8871,1976.2,1975.4,2.5133]
[1617821218963,64.8871,1976.2,1974.9,82.611]
[1617821218964,64.8871,1976.2,1975.5,2.90695]
[1617821219163,32.0,1976.6,1975.5,2.90695]
[1617821219364,32.0,1976.6,1975.6,69.3728]
[1617821220264,32.02898364,1976.6,1975.6,69.3728]
[1617821220864,2.90695,1975.7,1975.6,69.3728]
[1617821221065,2.90695,1975.7,1975.1,2.90695]
[1617821221265,2.90695,1975.7,1975.2,72.2109]
[1617821221767,2.90695,1975.7,1975.3,6.13]
[1617821222267,2.90695,1975.7,1975.2,72.2109]
[1617821222867,3.0808,1975.8,1975.3,2.90695]
[1617821223272,3.0808,1975.8,1970.7,11.31161523]
[1617821223273,80.8555,1975.1,1973.9,110.005]
[1617821223871,80.8555,1975.1,1974.0,6.11]
[1617821224972,2.6022,1975.1,1974.6,2.90695]
[1617821225174,82.9333,1974.6,1973.1,77.698]
[1617821225373,85.9149,1974.6,1973.1,79.698]
[1617821225778,85.9149,1974.6,1973.2,6.24]
[1617821225975,2.9816,1974.6,1973.2,6.24]
[1617821226176,60.0867,1973.7,1973.2,6.24]
[1617821226375,62.0848,1973.7,1973.2,6.24]
[1617821226574,62.0848,1973.7,1973.0,6.23]
[1617821226775,62.0848,1973.7,1972.7,3.86]
[1617821226974,62.0848,1973.7,1973.3,5.23]
[1617821227174,62.0848,1973.7,1973.1,6.1]
[1617821227373,62.0848,1973.7,1972.7,6.16]
[1617821227575,62.0848,1973.7,1972.6,2.0]
[1617821227976,62.0848,1973.7,1972.7,6.25]
[1617821228776,62.0848,1973.7,1972.7,30.0]
[1617821228976,64.99175,1973.7,1973.4,2.90695]
[1617821229276,62.99365,1973.7,1973.5,4.2]
[1617821232779,62.99365,1973.7,1973.4,2.90695]
[1617821233089,65.61085,1973.7,1973.4,2.90695]
[1617821233590,65.61085,1973.7,1972.2,84.8164]
[1617821233997,65.61085,1973.7,1972.2,114.8164]
[1617821234192,65.61085,1973.7,1972.3,6.18]
[1617821235013,73.6543,1973.0,1972.9,2.90695]
[1617821235412,75.6893,1973.0,1972.9,2.90695]
[1617821236012,75.6893,1973.0,1972.9,9.16695]
[1617821236385,73.6543,1973.0,1972.9,9.16695]
[1617821236986,15.7397,1975.0,1972.9,9.16695]
[1617821237207,76.6417,1974.4,1972.9,76.52285]
[1617821237584,32.0,1975.0,1972.9,41.61105]
[1617821237785,101.7234,1975.0,1973.5,62.5003]
[1617821237983,101.7234,1975.0,1973.5,64.8134]
[1617821238184,2.0,1974.9,1973.6,6.25]
[1617821238785,71.7234,1975.0,1973.6,6.25]
[1617821239084,71.7234,1975.0,1973.9,5.69685]
[1617821240988,71.7234,1975.0,1974.2,2.90695]
[1617821243088,2.90695,1974.3,1974.2,2.90695]
[1617821244691,2.90695,1974.3,1972.9,34.4441]
[1617821244892,75.9721,1973.6,1972.4,30.0]
[1617821245201,2.90695,1973.5,1973.3,2.90695]
[1617821245425,2.90695,1973.5,1973.0,6.17]
[1617821245645,2.90695,1973.5,1972.3,6.31]
[1617821245918,58.2671,1972.6,1971.2,58.2836]
[1617821246061,60.9319,1972.6,1971.2,88.2836]
[1617821246228,60.9319,1972.6,1971.3,2.0]
[1617821246425,60.9319,1972.6,1971.8,6.21]
[1617821247059,60.9319,1972.6,1972.5,2.90695]
[1617821248802,2.6648,1972.6,1971.1,2.0]
[1617821249000,2.90695,1971.8,1971.7,3.90695]
[1617821249204,5.14485,1971.8,1971.7,3.90695]
[1617821250103,5.14485,1971.8,1971.7,1.0]
[1617821251303,5.14485,1971.8,1971.1,2.90695]
[1617821251505,5.14485,1971.8,1969.9,2.0]
[1617821251709,82.807,1971.1,1969.9,2.0]
[1617821252034,82.807,1971.1,1969.8,74.5807]
[1617821252035,80.1317,1970.3,1970.0,6.14]
[1617821252208,82.2779,1970.3,1970.0,6.14]
[1617821252506,82.2779,1970.3,1969.2,2.0306]
[1617821252507,82.2779,1970.3,1969.5,3.02]
[1617821252707,82.2779,1970.3,1970.1,6.28]
[1617821253107,2.90695,1970.7,1970.2,2.90695]
[1617821253307,2.90695,1970.7,1970.2,8.94695]
[1617821253710,2.90695,1970.7,1970.2,2.90695]
[1617821254009,2.90695,1970.7,1970.3,6.38]
[1617821254608,80.7191,1971.1,1970.3,6.38]
[1617821255010,80.7191,1971.1,1971.0,2.90695]
[1617821256712,80.7191,1971.1,1971.0,6.21]
[1617821256911,80.7191,1971.1,1969.8,81.1835]
[1617821257112,85.99855,1971.1,1970.6,2.90695]
[1617821257611,85.99855,1971.1,1970.7,6.3]
[1617821258213,85.99855,1971.1,1970.6,2.90695]
[1617821259114,2.90695,1970.7,1970.6,2.90695]
[1617821259316,4.87105,1970.7,1970.6,2.90695]
[1617821261016,2.90695,1970.7,1970.6,2.90695]
[1617821261417,2.0,1972.0,1970.6,2.90695]
[1617821262119,77.6006,1970.7,1970.6,2.90695]
[1617821262821,79.6359,1970.7,1970.6,2.90695]